fUSD/lending_fUSD_20241221
["ID","MTS","AMOUNT","RATE_DAILY","PERIOD"]
[346185802,1734767444889,-500.0,0.00019588,2]
[346185803,1734767444898,-500.0,0.00019588,2]
[346185804,1734767444907,-500.0,0.00019588,2]
[346185805,1734767444916,-500.0,0.00019588,2]
[346185806,1734767444925,-500.0,0.00019588,2]
[346185807,1734767444935,-500.0,0.00019588,2]
[346185808,1734767444944,-500.0,0.00019588,2]
[346185809,1734767444953,-500.0,0.00019588,2]
[346185810,1734767444963,-500.0,0.00019588,2]
[346185811,1734767444972,-500.0,0.00019588,2]
[346185812,1734767444981,-500.0,0.00019588,2]
[346185813,1734767444990,-500.0,0.00019588,2]
[346185814,1734767444999,-500.0,0.00019588,2]
[346185815,1734767445009,-500.0,0.00019588,2]
[346185816,1734767445018,-500.0,0.00019588,2]
[346185817,1734767445026,-500.0,0.00019588,2]
[346185818,1734767445036,-500.0,0.00019588,2]
[346185819,1734767445045,-500.0,0.00019588,2]
[346185820,1734767445054,-500.0,0.00019588,2]
[346185821,1734767445063,-500.0,0.00019588,2]
[346185822,1734767445072,-500.0,0.00019588,2]
[346185823,1734767445081,-500.0,0.00019588,2]
[346185824,1734767445090,-500.0,0.00019588,2]
[346185825,1734767445099,-500.0,0.00019588,2]
[346185826,1734767445108,-500.0,0.00019588,2]
[346185827,1734767445116,-503.17010746,0.00019588,2]
[346185828,1734767445125,-500.0,0.00019588,2]
[346185829,1734767445134,-500.0,0.00019588,2]
[346185830,1734767445143,-500.0,0.00019588,2]
[346185831,1734767445152,-500.0,0.00019588,2]
[346185832,1734767445161,-500.0,0.00019589,2]
[346185833,1734767445170,-500.0,0.00019589,2]
[346185834,1734767445179,-111.71200469,0.00019589,2]
[346185835,1734767445585,-500.0,0.00019451,2]
[346185836,1734767445595,-388.28799531,0.00019589,2]
[346185837,1734767445604,-500.0,0.00019589,2]
[346185838,1734767445614,-500.0,0.00019589,2]
[346185839,1734767445623,-500.0,0.00019589,2]
[346185840,1734767445633,-500.0,0.00019589,2]
[346185841,1734767445642,-623.52,0.00019589,2]
[346185842,1734767445651,-517.0,0.00019589,2]
[346185843,1734767445661,-500.0,0.00019589,2]
[346185844,1734767445670,-500.0,0.00019589,2]
[346185845,1734767445680,-535.65,0.00019589,2]
[346185846,1734767445690,-500.0,0.00019589,2]
[346185847,1734767445699,-500.0,0.00019589,2]
[346185848,1734767445709,-500.0,0.00019589,2]
[346185849,1734767445721,-615.84,0.00019589,2]
[346185850,1734767445730,-1057.36,0.00019589,2]
[346185851,1734767445740,-500.0,0.00019589,2]
[346185852,1734767445750,-1533.96,0.00019589,2]
[346185853,1734767445762,-500.0,0.00019589,2]
[346185854,1734767445771,-1659.24,0.00019589,2]
[346185855,1734767445781,-500.0,0.00019589,2]
[346185856,1734767445790,-500.0,0.00019589,2]
[346185857,1734767445801,-542.35,0.00019589,2]
[346185858,1734767445810,-500.0,0.00019589,2]
[346185859,1734767445820,-1212.31,0.00019589,2]
[346185860,1734767445829,-2458.97,0.00019589,2]
[346185861,1734767445838,-819.05,0.00019589,2]
[346185862,1734767445848,-598.57,0.00019589,2]
[346185863,1734767445858,-2978.5,0.00019589,2]
[346185864,1734767445868,-1115.59,0.00019589,2]
[346185865,1734767445879,-615.73,0.00019589,2]
[346185866,1734767445888,-500.0,0.00019589,2]
[346185868,1734767445898,-167.35,0.00019589,2]
[346185870,1734767445908,-307.44005519,0.00019609,2]
[346185872,1734767445917,-1124.33,0.0001972,2]
[346185874,1734767445927,-822.727702,0.0001972,2]
[346185875,1734767445936,-808.15,0.0001972,2]
[346185876,1734767445946,-504.79,0.0001972,2]
[346185877,1734767445956,-1257.221086,0.0001972,2]
[346185878,1734767445966,-500.0,0.0001972,2]
[346185879,1734767445975,-771.05,0.0001972,2]
[346185880,1734767445985,-1633.59,0.0001972,2]
[346185881,1734767445994,-576.52,0.0001972,2]
[346185882,1734767446004,-500.0,0.0001972,2]
[346185883,1734767446013,-663.07,0.0001972,2]
[346185884,1734767446022,-1699.61,0.0001972,2]
[346185885,1734767446031,-500.0,0.0001972,2]
[346185886,1734767446041,-500.0,0.0001972,2]
[346185887,1734767446050,-500.0,0.0001972,2]
[346185888,1734767446060,-1125.95,0.0001972,2]
[346185889,1734767446069,-935.73,0.0001972,2]
[346185890,1734767446079,-867.47,0.0001972,2]
[346185891,1734767446088,-500.0,0.0001972,2]
[346185892,1734767446099,-500.0,0.0001972,2]
[346185893,1734767446108,-1396.92,0.0001972,2]
[346185894,1734767446118,-1778.87,0.0001972,2]
[346185895,1734767446127,-1053.46,0.0001972,2]
[346185896,1734767446137,-1361.93,0.0001972,2]
[346185897,1734767446147,-500.0,0.0001972,2]
[346185898,1734767446157,-996.29,0.0001972,2]
[346185899,1734767446166,-678.21,0.0001972,2]
[346185900,1734767446176,-1162.63,0.0001972,2]
[346185901,1734767446186,-500.0,0.0001972,2]
[346185902,1734767446196,-1187.45,0.0001972,2]
[346185903,1734767446206,-812.33,0.0001972,2]
[346185904,1734767446216,-614.56,0.0001972,2]
[346185905,1734767446227,-2000.21,0.0001972,2]
[346185906,1734767446237,-741.43,0.0001972,2]
[346185907,1734767446247,-5309.58,0.0001972,2]
[346185908,1734767446257,-5893.98,0.0001972,2]
[346185909,1734767446267,-1228.79,0.0001972,2]
[346185910,1734767446279,-1629.69,0.0001972,2]
[346185911,1734767446289,-500.0,0.0001972,2]
[346185912,1734767446299,-790.74,0.0001972,2]
[346185913,1734767446311,-500.0,0.0001972,2]
[346185914,1734767446320,-528.64,0.0001972,2]
[346185915,1734767446330,-500.0,0.0001972,2]
[346185916,1734767446339,-6178.84,0.0001972,2]
[346185917,1734767446351,-2320.68,0.0001972,2]
[346185918,1734767446361,-500.0,0.0001972,2]
[346185919,1734767446371,-527.75,0.0001972,2]
[346185920,1734767446381,-4353.05,0.0001972,2]
[346185921,1734767446391,-500.0,0.0001972,2]
[346185922,1734767446401,-571.31,0.0001972,2]
[346185923,1734767446411,-513.04,0.0001972,2]
[346185924,1734767446420,-658.15,0.0001972,2]
[346185925,1734767446430,-500.0,0.0001972,2]
[346185926,1734767446441,-674.82,0.0001972,2]
[346185927,1734767446451,-519.28,0.0001972,2]
[346185928,1734767446461,-500.0,0.0001972,2]
[346185929,1734767446472,-1363.46,0.0001972,2]
[346185930,1734767446482,-500.0,0.0001972,2]
[346185931,1734767446492,-602.87,0.0001972,2]
[346185932,1734767446502,-500.0,0.0001972,2]
[346185933,1734767446512,-500.0,0.00019721,2]
[346185934,1734767446521,-500.0,0.00019721,2]
[346185935,1734767446531,-446.12560898,0.00019721,2]
[346185937,1734767447308,-500.0,0.00019446,2]
[346185938,1734767447319,-500.0,0.00019447,2]
[346185939,1734767447328,-500.0,0.00019588,2]
[346185940,1734767447337,-53.87439102,0.00019721,2]
[346185941,1734767447348,-500.0,0.00019721,2]
[346185942,1734767447358,-500.0,0.00019721,2]
[346185943,1734767447368,-500.0,0.00019721,2]
[346185944,1734767447379,-500.0,0.00019721,2]
[346185945,1734767447390,-500.0,0.00019721,2]
[346185946,1734767447399,-500.0,0.00019721,2]
[346185947,1734767447409,-500.0,0.00019721,2]
[346185948,1734767447419,-500.0,0.00019721,2]
[346185949,1734767447429,-514.33574005,0.00019721,2]
[346185950,1734767447440,-514.69805367,0.00019721,2]
[346185951,1734767447449,-512.29614347,0.00019721,2]
[346185952,1734767447459,-500.0,0.00019721,2]
[346185953,1734767447471,-500.0,0.00019721,2]
[346185954,1734767447481,-500.0,0.00019721,2]
[346185955,1734767447491,-500.0,0.00019721,2]
[346185956,1734767447501,-500.0,0.00019721,2]
[346185957,1734767447511,-500.0,0.00019721,2]
[346185958,1734767447521,-500.0,0.00019721,2]
[346185959,1734767447531,-505.59764714,0.00019721,2]
[346185960,1734767447541,-500.0,0.00019721,2]
[346185961,1734767447551,-500.0,0.00019721,2]
[346185962,1734767447560,-500.0,0.00019721,2]
[346185963,1734767447569,-488.39824106,0.00019721,2]
[346185964,1734767447590,-63.68917251,0.00019721,2]
[346185965,1734767447600,-196.42312269,0.00019721,2]
[346185966,1734767447615,-303.57687731,0.00019721,2]
[346185967,1734767447625,-500.0,0.00019721,2]
[346185968,1734767447634,-72.36529379,0.00019721,2]
[346185969,1734767447646,-430.14450063,0.00019721,2]
[346185970,1734767447655,-500.0,0.00019721,2]
[346185971,1734767447664,-337.12701894,0.00019721,2]
[346185972,1734767447680,-500.0,0.0001972,2]
[346185973,1734767447690,-162.87298106,0.00019721,2]
[346185974,1734767447700,-500.0,0.00019721,2]
[346185975,1734767447710,-500.0,0.00019721,2]
[346185976,1734767447722,-500.0,0.00019721,2]
[346185977,1734767447732,-163.81539084,0.00019721,2]
[346185978,1734767447744,-336.18460916,0.00019721,2]
[346185979,1734767447754,-500.0,0.00019721,2]
[346185980,1734767447764,-500.0,0.00019721,2]
[346185981,1734767447774,-683.95,0.00019721,2]
[346185982,1734767447784,-500.0,0.00019721,2]
[346185983,1734767447793,-500.0,0.00019721,2]
[346185984,1734767447804,-652.1,0.00019721,2]
[346185985,1734767447813,-500.0,0.00019721,2]
[346185986,1734767447823,-500.0,0.00019721,2]
[346185987,1734767447832,-313.07539084,0.00019721,2]
[346185988,1734767447845,-186.92460916,0.00019721,2]
[346185989,1734767447855,-500.0,0.00019721,2]
[346185990,1734767447864,-500.0,0.00019721,2]
[346185991,1734767447873,-500.0,0.00019721,2]
[346185992,1734767447883,-531.29,0.00019721,2]
[346185993,1734767447892,-500.0,0.00019721,2]
[346185994,1734767447902,-500.0,0.00019721,2]
[346185995,1734767447911,-500.0,0.00019721,2]
[346185996,1734767447920,-500.0,0.00019721,2]
[346185997,1734767447930,-500.0,0.00019721,2]
[346185998,1734767447940,-533.83,0.00019721,2]
[346185999,1734767447950,-500.0,0.00019721,2]
[346186000,1734767447959,-500.0,0.00019721,2]
[346186001,1734767447970,-546.00733393,0.00019721,2]
[346186002,1734767447979,-500.0,0.00019721,2]
[346186003,1734767447988,-500.0,0.00019721,2]
[346186004,1734767447998,-500.0,0.00019721,2]
[346186005,1734767448007,-500.0,0.00019721,2]
[346186006,1734767448017,-500.0,0.00019721,2]
[346186007,1734767448026,-500.0,0.00019721,2]
[346186008,1734767448036,-433.3012877,0.00019721,2]
[346186009,1734767448045,-500.0,0.00019721,2]
[346186010,1734767448055,-500.0,0.00019721,2]
[346186011,1734767448064,-500.0,0.00019721,2]
[346186012,1734767448074,-500.0,0.00019721,2]
[346186013,1734767448083,-500.0,0.00019721,2]
[346186014,1734767448093,-500.0,0.00019721,2]
[346186015,1734767448103,-500.0,0.00019721,2]
[346186016,1734767448113,-500.0,0.00019721,2]
[346186017,1734767448122,-500.0,0.00019721,2]
[346186018,1734767448132,-320.29364488,0.00019721,2]
[346186019,1734767448150,-500.0,0.00019447,2]
[346186020,1734767448160,-179.70635512,0.00019721,2]
[346186021,1734767448170,-500.0,0.00019721,2]
[346186022,1734767448180,-500.0,0.00019721,2]
[346186023,1734767448189,-500.0,0.00019721,2]
[346186024,1734767448199,-604.45,0.00019721,2]
[346186025,1734767448210,-361.02512005,0.00019721,2]
[346186026,1734767448220,-500.0,0.00019721,2]
[346186027,1734767448230,-433.28669227,0.00019721,2]
[346186028,1734767448240,-500.0,0.00019721,2]
[346186029,1734767448250,-500.0,0.00019721,2]
[346186030,1734767448259,-690.34,0.00019721,2]
[346186031,1734767448271,-500.0,0.00019721,2]
[346186032,1734767448283,-500.0,0.00019721,2]
[346186033,1734767448292,-500.0,0.00019721,2]
[346186034,1734767448302,-500.0,0.00019721,2]
[346186035,1734767448313,-500.0,0.00019721,2]
[346186036,1734767448322,-500.0,0.00019721,2]
[346186037,1734767448330,-500.0,0.00019721,2]
[346186038,1734767448339,-500.0,0.00019721,2]
[346186039,1734767448348,-611.28,0.00019721,2]
[346186040,1734767448357,-500.0,0.00019721,2]
[346186041,1734767448367,-500.0,0.00019721,2]
[346186042,1734767448376,-635.09,0.00019721,2]
[346186043,1734767448385,-500.0,0.00019721,2]
[346186044,1734767448394,-500.0,0.00019721,2]
[346186045,1734767448404,-500.0,0.00019721,2]
[346186046,1734767448413,-500.0,0.00019721,2]
[346186047,1734767448422,-500.0,0.00019721,2]
[346186048,1734767448431,-500.0,0.00019721,2]
[346186049,1734767448440,-500.0,0.00019721,2]
[346186050,1734767448449,-500.0,0.00019721,2]
[346186051,1734767448458,-500.0,0.00019721,2]
[346186052,1734767448467,-500.0,0.00019721,2]
[346186053,1734767448477,-605.56677796,0.00019721,2]
[346186054,1734767448486,-500.0,0.00019721,2]
[346186055,1734767448495,-748.35,0.00019721,2]
[346186056,1734767448505,-500.0,0.00019721,2]
[346186057,1734767448514,-500.0,0.00019721,2]
[346186058,1734767448524,-500.0,0.00019721,2]
[346186059,1734767448533,-500.0,0.00019721,2]
[346186060,1734767448543,-500.0,0.00019721,2]
[346186061,1734767448552,-765.71,0.00019721,2]
[346186062,1734767448567,-500.0,0.00019721,2]
[346186063,1734767448576,-500.0,0.00019721,2]
[346186064,1734767448586,-500.0,0.00019721,2]
[346186065,1734767448596,-500.0,0.00019721,2]
[346186066,1734767448606,-500.0,0.00019721,2]
[346186067,1734767448617,-500.0,0.00019721,2]
[346186068,1734767448627,-500.0,0.00019721,2]
[346186069,1734767448637,-500.0,0.00019721,2]
[346186070,1734767448647,-679.08,0.00019721,2]
[346186071,1734767448656,-500.0,0.00019721,2]
[346186072,1734767448666,-500.0,0.00019721,2]
[346186073,1734767448675,-519.26069598,0.00019721,2]
[346186074,1734767448685,-500.0,0.00019721,2]
[346186075,1734767448695,-500.0,0.00019721,2]
[346186076,1734767448705,-500.0,0.00019721,2]
[346186077,1734767448715,-500.0,0.00019721,2]
[346186078,1734767448726,-500.0,0.00019721,2]
[346186079,1734767448735,-611.31,0.00019721,2]
[346186080,1734767448745,-500.0,0.00019721,2]
[346186081,1734767448754,-354.11589409,0.00019721,2]
[346186082,1734767448846,-145.88410591,0.00019721,2]
[346186083,1734767448856,-500.0,0.00019721,2]
[346186084,1734767448866,-500.0,0.00019721,2]
[346186085,1734767448876,-500.0,0.00019721,2]
[346186086,1734767448885,-500.0,0.00019721,2]
[346186087,1734767448895,-500.0,0.00019721,2]
[346186088,1734767448905,-500.0,0.00019721,2]
[346186089,1734767448915,-500.0,0.00019721,2]
[346186090,1734767448925,-500.0,0.00019721,2]
[346186091,1734767448935,-500.0,0.00019721,2]
[346186092,1734767448944,-500.0,0.00019721,2]
[346186093,1734767448954,-500.0,0.00019721,2]
[346186094,1734767448964,-500.0,0.00019721,2]
[346186095,1734767448974,-500.0,0.00019721,2]
[346186096,1734767448983,-500.0,0.00019721,2]
[346186097,1734767448993,-500.0,0.00019721,2]
[346186098,1734767449003,-500.0,0.00019721,2]
[346186099,1734767449013,-500.0,0.00019721,2]
[346186100,1734767449023,-500.0,0.00019721,2]
[346186101,1734767449032,-500.0,0.00019721,2]
[346186102,1734767449041,-500.0,0.00019721,2]
[346186103,1734767449050,-500.0,0.00019721,2]
[346186104,1734767449060,-618.26,0.00019721,2]
[346186105,1734767449070,-532.89,0.00019721,2]
[346186106,1734767449079,-500.0,0.00019721,2]
[346186107,1734767449088,-500.0,0.00019721,2]
[346186108,1734767449098,-500.0,0.00019721,2]
[346186109,1734767449107,-500.0,0.00019721,2]
[346186110,1734767449117,-500.0,0.00019721,2]
[346186111,1734767449127,-500.0,0.00019721,2]
[346186112,1734767449137,-512.6,0.00019721,2]
[346186113,1734767449146,-500.0,0.00019721,2]
[346186114,1734767449155,-500.0,0.00019721,2]
[346186115,1734767449165,-941.69,0.00019721,2]
[346186116,1734767449175,-500.0,0.00019721,2]
[346186117,1734767449185,-500.0,0.00019721,2]
[346186118,1734767449194,-500.0,0.00019721,2]
[346186119,1734767449204,-595.67,0.00019721,2]
[346186120,1734767449217,-500.0,0.00019721,2]
[346186121,1734767449228,-706.08,0.00019721,2]
[346186122,1734767449238,-500.0,0.00019721,2]
[346186123,1734767449247,-500.0,0.00019721,2]
[346186124,1734767449257,-500.0,0.00019721,2]
[346186125,1734767449268,-838.87,0.00019721,2]
[346186126,1734767449282,-500.0,0.00019721,2]
[346186127,1734767449292,-500.0,0.00019721,2]
[346186128,1734767449302,-500.0,0.00019721,2]
[346186129,1734767449313,-500.0,0.00019721,2]
[346186130,1734767449323,-500.0,0.00019721,2]
[346186131,1734767449333,-743.04,0.00019721,2]
[346186132,1734767449343,-507.09,0.00019721,2]
[346186133,1734767449353,-500.0,0.00019721,2]
[346186134,1734767449363,-633.12057424,0.00019721,2]
[346186135,1734767449373,-500.0,0.00019721,2]
[346186136,1734767449382,-500.0,0.00019721,2]
[346186137,1734767449393,-500.0,0.00019721,2]
[346186138,1734767449403,-500.0,0.00019721,2]
[346186139,1734767449413,-575.99,0.00019721,2]
[346186140,1734767449423,-1100.37,0.00019721,2]
[346186141,1734767449433,-500.0,0.00019721,2]
[346186142,1734767449443,-162.60726557,0.00019721,2]
[346186143,1734767449453,-500.0,0.00019721,2]
[346186144,1734767449463,-516.55,0.00019721,2]
[346186145,1734767449473,-500.0,0.00019721,2]
[346186146,1734767449483,-1278.47,0.00019721,2]
[346186147,1734767449492,-500.0,0.00019721,2]
[346186148,1734767449502,-531.36,0.00019721,2]
[346186149,1734767449511,-500.0,0.00019721,2]
[346186150,1734767449521,-500.0,0.00019721,2]
[346186151,1734767449598,-500.0,0.00019721,2]
[346186152,1734767449608,-500.0,0.00019721,2]
[346186153,1734767449618,-500.0,0.00019721,2]
[346186154,1734767449627,-500.0,0.00019721,2]
[346186155,1734767449637,-609.83,0.00019721,2]
[346186156,1734767449646,-500.0,0.00019721,2]
[346186157,1734767449656,-500.0,0.00019721,2]
[346186158,1734767449665,-500.0,0.00019721,2]
[346186159,1734767449674,-500.0,0.00019721,2]
[346186160,1734767449684,-508.14,0.00019721,2]
[346186161,1734767449693,-646.72,0.00019721,2]
[346186162,1734767449703,-500.0,0.00019721,2]
[346186163,1734767449712,-500.0,0.00019721,2]
[346186164,1734767449724,-685.97086047,0.00019721,2]
[346186165,1734767481831,1000.0,0.00019447,30]
[346186166,1734767482067,1000.0,0.00019721,30]
[346186167,1734767660802,-362.0,0.00022,120]
[346186168,1734767660824,-638.0,0.00022,120]
[346186169,1734767880202,2052.53185458,0.0002,120]
[346186172,1734768090998,1006.0,0.00015,10]
[346186173,1734768096014,151.64,0.00019446,30]
[346186175,1734768162683,161.97,0.00018666,30]
[346186181,1734768632432,-6149.0,0.00015,2]
[346186182,1734768632442,-707.96,0.00016529,2]
[346186183,1734768632451,-2871.690416,0.00018098,2]
[346186184,1734768632461,-250.0,0.00018189,2]
[346186185,1734768632471,-23900.0,0.00018278,2]
[346186186,1734768632481,-1000.0,0.00018297,2]
[346186187,1734768632490,-1394.64,0.00018391,2]
[346186188,1734768632500,-1056.15732161,0.00018469,2]
[346186189,1734768632509,-250.0,0.00018602,2]
[346186190,1734768632518,-151.21,0.00018641,2]
[346186191,1734768632527,-150.87,0.00018673,2]
[346186192,1734768632536,-707.96,0.00018792,2]
[346186193,1734768632545,-200.0,0.00018862,2]
[346186194,1734768632554,-511.02,0.00019,2]
[346186195,1734768632563,-1500.0,0.0001904,2]
[346186197,1734768632573,-1500.0,0.00019107,2]
[346186199,1734768632582,-245.4995305,0.00019159,2]
[346186201,1734768632591,-4000.0,0.00019178,2]
[346186203,1734768632600,-2318.2,0.00019178,2]
[346186206,1734768632609,-245.4995306,0.00019195,2]
[346186207,1734768632619,-645.0,0.00019253,2]
[346186210,1734768632630,-500.0,0.00019314,2]
[346186211,1734768632639,-500.0,0.00019314,2]
[346186214,1734768632648,-500.0,0.00019314,2]
[346186216,1734768632657,-500.0,0.00019314,2]
[346186217,1734768632668,-500.0,0.00019314,2]
[346186218,1734768632678,-500.0,0.00019314,2]
[346186219,1734768632687,-500.0,0.00019314,2]
[346186220,1734768632697,-307.75441069,0.00019314,2]
[346186221,1734768632706,-500.0,0.00019314,2]
[346186222,1734768632717,-500.0,0.00019314,2]
[346186223,1734768632726,-500.0,0.00019314,2]
[346186225,1734768632735,-500.0,0.00019314,2]
[346186227,1734768632746,-500.0,0.00019314,2]
[346186229,1734768632756,-500.0,0.00019314,2]
[346186231,1734768632766,-500.0,0.00019314,2]
[346186233,1734768632775,-507.2602602,0.00019314,2]
[346186235,1734768632785,-500.0,0.00019314,2]
[346186237,1734768632794,-500.0,0.00019314,2]
[346186239,1734768632803,-500.0,0.00019314,2]
[346186241,1734768632813,-500.0,0.00019314,2]
[346186243,1734768632822,-500.0,0.00019314,2]
[346186245,1734768632832,-500.0,0.00019314,2]
[346186247,1734768632843,-500.0,0.00019314,2]
[346186249,1734768632852,-500.0,0.00019314,2]
[346186251,1734768632861,-500.0,0.00019314,2]
[346186253,1734768632870,-500.0,0.00019314,2]
[346186255,1734768632879,-238.12426596,0.00019314,2]
[346186257,1734768632888,-500.0,0.00019314,2]
[346186259,1734768632897,-500.0,0.00019314,2]
[346186261,1734768632907,-5000.0,0.00019314,10]
[346186264,1734768632917,-286.95167039,0.00019314,2]
[346186266,1734768632927,-343.53009577,0.00019314,2]
[346186268,1734768632939,-200.12970712,0.00019314,2]
[346186270,1734768632950,-500.0,0.00019314,2]
[346186272,1734768632959,-500.0,0.00019314,2]
[346186273,1734768632968,-500.0,0.00019314,2]
[346186274,1734768632977,-500.0,0.00019314,2]
[346186275,1734768632986,-500.0,0.00019314,2]
[346186277,1734768632995,-500.0,0.00019314,2]
[346186278,1734768633005,-500.0,0.00019314,2]
[346186279,1734768633015,-500.0,0.00019314,2]
[346186280,1734768633024,-500.0,0.00019314,2]
[346186281,1734768633033,-500.0,0.00019314,2]
[346186282,1734768633042,-500.0,0.00019314,2]
[346186283,1734768633051,-500.0,0.00019314,2]
[346186284,1734768633061,-93.92862225,0.00019314,2]
[346186285,1734768633073,-406.07137775,0.00019314,2]
[346186286,1734768633083,-500.0,0.00019314,2]
[346186287,1734768633092,-500.0,0.00019314,2]
[346186288,1734768633101,-500.0,0.00019314,2]
[346186289,1734768633112,-136.99470309,0.00019314,2]
[346186290,1734768638323,-363.00529691,0.00019314,2]
[346186291,1734768638332,-500.0,0.00019314,2]
[346186292,1734768638341,-500.0,0.00019314,2]
[346186293,1734768638350,-500.0,0.00019314,2]
[346186294,1734768638359,-500.0,0.00019314,2]
[346186295,1734768638367,-500.0,0.00019314,2]
[346186296,1734768638376,-122.62269056,0.00019314,2]
[346186297,1734768638455,-377.37730944,0.00019314,2]
[346186298,1734768638464,-500.0,0.00019314,2]
[346186299,1734768638473,-500.0,0.00019314,2]
[346186300,1734768638481,-500.0,0.00019314,2]
[346186301,1734768638490,-500.0,0.00019314,2]
[346186302,1734768638499,-500.0,0.00019314,2]
[346186303,1734768638508,-168.64902227,0.00019314,2]
[346186305,1734768638593,-324.726,0.00019314,2]
[346186308,1734768638639,-6.62497773,0.00019314,2]
[346186309,1734768638648,-500.0,0.00019314,2]
[346186311,1734768638657,-500.0,0.00019314,2]
[346186312,1734768638670,-593.29744283,0.00019314,2]
[346186313,1734768638679,-500.0,0.00019314,2]
[346186315,1734768638688,-500.0,0.00019314,2]
[346186316,1734768638696,-500.0,0.00019314,2]
[346186317,1734768638706,-500.0,0.00019314,2]
[346186318,1734768638716,-500.0,0.00019314,2]
[346186319,1734768638725,-500.0,0.00019314,2]
[346186320,1734768638735,-500.0,0.00019314,2]
[346186321,1734768638744,-518.88062395,0.00019314,2]
[346186322,1734768638753,-500.0,0.00019314,2]
[346186323,1734768638762,-334.79055864,0.00019314,2]
[346186324,1734768638771,-500.0,0.00019314,2]
[346186325,1734768638780,-157.77130028,0.00019314,2]
[346186326,1734768638789,-500.0,0.00019314,2]
[346186327,1734768638798,-500.0,0.00019314,2]
[346186328,1734768638807,-632.23241805,0.00019314,2]
[346186329,1734768638816,-500.71,0.00019314,2]
[346186330,1734768638825,-500.0,0.00019314,2]
[346186331,1734768638834,-500.0,0.00019314,2]
[346186332,1734768638844,-500.0,0.00019314,2]
[346186333,1734768638853,-500.0,0.00019314,2]
[346186334,1734768638862,-500.0,0.00019314,2]
[346186335,1734768638871,-500.0,0.00019314,2]
[346186336,1734768638880,-500.0,0.00019314,2]
[346186337,1734768638889,-500.0,0.00019314,2]
[346186338,1734768638899,-500.0,0.00019314,2]
[346186339,1734768638908,-500.0,0.00019314,2]
[346186340,1734768638918,-500.0,0.00019314,2]
[346186341,1734768638927,-500.0,0.00019314,2]
[346186342,1734768638936,-500.0,0.00019314,2]
[346186343,1734768638945,-500.0,0.00019314,2]
[346186344,1734768638957,-500.0,0.00019314,2]
[346186345,1734768638967,-500.0,0.00019314,2]
[346186346,1734768638978,-500.0,0.00019314,2]
[346186347,1734768638988,-150.64,0.00019336,2]
[346186348,1734768638997,-150.64,0.00019336,2]
[346186349,1734768639007,-5124.0635,0.00019345,2]
[346186350,1734768639016,-308.7417,0.00019345,2]
[346186351,1734768639026,-1500.0,0.00019345,2]
[346186352,1734768639036,-4194.03684202,0.00019345,2]
[346186353,1734768639048,-992.69,0.00019345,2]
[346186356,1734768640094,-335.09972846,0.00019345,2]
[346186357,1734768640105,-1086.481,0.00019345,2]
[346186358,1734768640459,-550.7844546,0.00019345,2]